Cogmind - Beta 14 @@@ ROGUE MODE // 2024.09.17 @ 15:53:28 Player: ZarZap Result: Destroyed by S-10 Pest with Light Assault Rifle Performance ------------- Evolutions (0) 0 Regions Visited (2) 400 Robots Destroyed (16) 80 Value Destroyed (367) 367 Prototype IDs (0) 0 Alien Tech Used (0) 0 Bonus (0) 0 TOTAL SCORE: 847 Bonus ------- None Cogmind --------- Core Integrity 0/250 Matter 300/300 Energy 100/100 System Corruption 0% Temperature Cool (0) Movement Walking (260) Ox2 Location -10/Mines Parts ------- > --- POWER (1) -------- (None) > --- PROPULSION (2) --- Aluminum Leg > --- UTILITY (2) ------ Large Storage Unit > --- WEAPON (2) ------- Medium Laser > --- INVENTORY (15) --- Ion Engine Ion Engine Aluminum Leg Compact Wheel Compact Wheel Compact Wheel Compact Wheel Disposable Heat Sink Heavy EM Pulse Gun Small Laser Small Laser Small Laser Small Laser Rocket Launcher Peak State ------------ > --- POWER ------------ Light Nuclear Core > --- PROPULSION ------- Aluminum Leg Aluminum Leg > --- UTILITY ---------- Heat Sink Large Storage Unit > --- WEAPON ----------- Heavy EM Pulse Gun Medium Laser > --- INVENTORY -------- Ion Engine Ion Engine Aluminum Leg Compact Wheel Compact Wheel Compact Wheel Compact Wheel Disposable Heat Sink Heavy EM Pulse Gun Small Laser Small Laser Small Laser Small Laser Rocket Launcher [Rating: 11] Favorites ----------- Power Light Nuclear Core Engine Ion Engine Power Core Light Nuclear Core Propulsion Aluminum Leg Leg Aluminum Leg Wheel Wheel Utility Heat Sink Device Heat Sink Storage Large Storage Unit Weapon Medium Laser Energy Gun Medium Laser Launcher Rocket Launcher Build | -11 -10 -10 ------- Run | Yrd Mat Min Slots Evolved . | . . . Power . | . . . Propulsion . | . . . Utility . | . . . Weapon . | . . . Parts Attached 17 | 6 9 2 Power 2 | 1 1 . Engine 1 | 1 . . Core 1 | . 1 . Reactor . | . . . Propulsion 6 | 2 2 2 Treads . | . . . Leg 4 | . 2 2 Wheel 2 | 2 . . Hover . | . . . Flight . | . . . Utility 3 | 1 2 . Device 1 | . 1 . Storage 2 | 1 1 . Processor . | . . . Hackware . | . . . Protection . | . . . Artifact . | . . . Weapon 6 | 2 4 . Energy Gun 5 | 2 3 . Energy Cannon . | . . . Ballistic Gun . | . . . Ballistic Cannon . | . . . Launcher 1 | . 1 . Special Weapon . | . . . Impact Weapon . | . . . Slashing Weapon . | . . . Piercing Weapon . | . . . Special Melee Weapon . | . . . Unidentified Prototypes . | . . . Parts Lost 4 | . . 4 Power 1 | . . 1 Propulsion 1 | . . 1 Utility 1 | . . 1 Weapon 1 | . . 1 Highest Loss Streak 4 | . . 4 To Critical Strikes . | . . . Average Slot Usage (%) 94 | . 92 95 Engine 4 | . 12 . Core 8 | . 1 13 Leg 21 | . 15 25 Wheel 3 | . 8 . Device 12 | . 11 13 Storage 14 | . 14 14 Energy Gun 27 | . 28 27 Peak Build Rating 11 | 6 10 11 Average Rating 9 | 4 7 10 On Entrance 5 | . 6 10 Naked Turns . | . . . Heaviest Build 31 | 12 31 31 Greatest Support 26 | 26 26 20 Greatest Overweight (x) 3 | 3 3 3 Average Overweight (x) . | . . 1 Largest Inventory Capacity 15 | 8 15 15 Average Capacity 13 | 7 11 15 Most Carried 14 | 2 13 14 Average Carried 10 | 1 6 13 Final Capacity 15 | 8 15 15 Final Carried 14 | 2 13 14 Class Distribution -------------------- 100% | Mutant Dominant Class ---------------- Mutant | -10/Materials Mutant | -10/Mines Resources | -11 -10 -10 ----------- Run | Yrd Mat Min Matter Collected 392 | 196 104 92 Remotely . | . . . Salvage Created 620 | . 466 154 Parts 40 | . 37 3 Haulers Intercepted . | . . . Recyclers Shooed 3 | . 2 1 Parts Field Recycled . | . . . Retrieved Matter . | . . . Parts Self-Destructed . | . . . Prevented . | . . . Kills | -11 -10 -10 ------- Run | Yrd Mat Min Combat Hostiles Destroyed 14 | . 9 5 Guns 12 | . 7 5 AOE 2 | . 2 . Classes Destroyed 6 | . 5 1 Builder 1 | . 1 . Recycler 3 | . 3 . Watcher 1 | . 1 . Swarmer 3 | . 3 . Grunt 8 | . 6 2 Assembled 3 | . . 3 Best Kill Streak 5 | . 5 2 Combat Bots Only 3 | . 3 2 Max Kills in Single Turn 2 | . 2 2 Gunslinging 1 | . . 1 Exploded 1 | . 1 . Melee . | . . . Uniques/NPCs Destroyed . | . . . Combat | -11 -10 -10 -------- Run | Yrd Mat Min Hostile Shots Fired 98 | . 38 60 Missed 29 | . 15 14 Damage Taken 812 | . 257 555 Core 255 | . 45 210 Absorbed by Shields . | . . . Core Remaining (%) 100 | 100 . . Volleys Fired 47 | . 32 15 Largest 2 | . 2 2 Hottest 95 | . 95 95 Shots Fired 94 | . 64 30 Gun 92 | . 62 30 Cannon . | . . . Launcher 2 | . 2 . Special . | . . . Kinetic . | . . . Thermal 75 | . 60 15 Explosive 2 | . 2 . Electromagnetic 17 | . 2 15 Robot Hit Streak 11 | . 10 11 Robot Miss Streak 4 | . 4 2 Penetration Max . | . . . Secondary Targets 2 | . . 2 Max Gunslinging Chain 1 | . . 1 Shots Hit Robots 57 | . 38 19 Core Hits 35 | . 24 11 Critical Kills . | . . . Critical Parts Destroyed . | . . . Critical Strikes 2 | . 1 1 Burn 2 | . 1 1 Melee Attacks . | . . . Impact . | . . . Slashing . | . . . Piercing . | . . . Sneak Attacks . | . . . Combat Hostiles . | . . . Follow-up Attacks . | . . . Damage Inflicted 876 | . 608 268 Guns 690 | . 423 267 Cannons . | . . . Explosions 185 | . 185 . Melee . | . . . Ramming 1 | . . 1 Kinetic . | . . . Thermal 518 | . 406 112 Explosive 185 | . 185 . Electromagnetic 172 | . 17 155 Impact . | . . . Slashing . | . . . Piercing . | . . . Highest Corruption . | . . . Average Corruption . | . . . Corruption Purged . | . . . Corruption Blocked . | . . . Overload Shots . | . . . Overflow Damage . | . . . Projectiles . | . . . Explosions . | . . . Melee . | . . . Knockbacks . | . . . Impact . | . . . Kinetic . | . . . Secondary . | . . . Self-Inflicted Damage . | . . . Shots . | . . . Rammed . | . . . Targets Rammed 2 | . 1 1 Kicked 2 | . 1 1 Crushed . | . . . Highest Temperature 202 | . 202 84 Average Temperature 56 | . 74 27 Received Heat Transfer 189 | . 126 63 Effects 1 | . 1 . Energy Bleed 1 | . 1 . Siege Activations . | . . . Robots Corrupted . | . . . Combat Hostiles . | . . . Parts Fried . | . . . Impact Corruptions . | . . . Robots Melted . | . . . Combat Hostiles . | . . . Parts Melted 2 | . 2 . Heat Transferred 1477 | . 1070 407 Parts Sabotaged . | . . . Parts Stolen . | . . . Parts Stripped . | . . . Power Chain Reactions . | . . . Alert | -11 -10 -10 ------- Run | Yrd Mat Min Peak Influence 278 | . 278 158 Initial 108 | . . 108 Average 119 | . 137 118 Maximum Alert Level 1 | . 1 . Low Security (%) 88 | 100 70 100 Level 1 11 | . 29 . Level 2 . | . . . Level 3 . | . . . Level 4 . | . . . Level 5 . | . . . High Security . | . . . Max Security . | . . . Squads Dispatched 1 | . 1 . Investigation . | . . . Extermination . | . . . Reinforcement 1 | . 1 . Assault . | . . . Garrison . | . . . Intercept . | . . . Searches Triggered . | . . . Construction Impeded . | . . . Haulers Reinforced . | . . . Active Scanning Responses . | . . . Cargo Convoy Interrupts . | . . . Stealth | -11 -10 -10 --------- Run | Yrd Mat Min Distress Signals 1 | . 1 . Communications Jammed . | . . . Distress Signals . | . . . Times Spotted 31 | . 15 16 Peak Tracking Total 8 | . 5 8 Tactical Retreats 3 | . 1 2 Traps | -11 -10 -10 ------- Run | Yrd Mat Min Traps Triggered 1 | . 1 . Indirectly . | . . . Trap Hack Attempts . | . . . Triggered . | . . . Disarmed . | . . . Reprogrammed . | . . . Reused . | . . . Traps Extracted . | . . . Installed . | . . . Triggered . | . . . Machines | -11 -10 -10 ---------- Run | Yrd Mat Min Machines Disabled . | . . . Max in Single Turn . | . . . Machines Repaired . | . . . Machines Dismantled . | . . . Machines Sabotaged . | . . . Overloaded Fab Kills . | . . . Hacking | -11 -10 -10 --------- Run | Yrd Mat Min Machines Accessed . | . . . Terminals . | . . . Fabricators . | . . . Repair Stations . | . . . Recycling Units . | . . . Scanalyzers . | . . . Garrison Access . | . . . Total Hacks . | . . . Successful . | . . . Failed . | . . . Catastrophic . | . . . Database Lockouts . | . . . Manual . | . . . Terminals . | . . . Fabricators . | . . . Repair Stations . | . . . Recycling Units . | . . . Scanalyzers . | . . . Garrison Access . | . . . Terminal Hacks . | . . . Fabricator Hacks . | . . . Repair Station Hacks . | . . . Recycling Unit Hacks . | . . . Scanalyzer . | . . . Garrison Access Hacks . | . . . Unauthorized Hacks . | . . . Terminals . | . . . Fabricators . | . . . Repair Stations . | . . . Recycling Units . | . . . Scanalyzers . | . . . Garrison Access . | . . . Data Cores Recovered . | . . . Used . | . . . Hacking Detections . | . . . Full Trace Events . | . . . Feedback Events . | . . . Feedback Blocked . | . . . Robot Schematics Acquired . | . . . Robots Built . | . . . Authchips . | . . . Time . | . . . Total Robot Build Rating . | . . . Part Schematics Acquired . | . . . Parts Built . | . . . Authchips . | . . . Time . | . . . Total Part Build Rating . | . . . Parts Repaired . | . . . Time . | . . . Parts Recycled . | . . . Recycled Matter . | . . . Retrieved Matter . | . . . Retrieved Components . | . . . Parts Scanalyzed . | . . . Part Schematics Acquired . | . . . Parts Damaged . | . . . Bothacking | -11 -10 -10 ------------ Run | Yrd Mat Min Used RIF Installer . | . . . Robots Hacked . | . . . Non-combat . | . . . Combat . | . . . Robot Hacks Applied . | . . . Relay Couplers Released . | . . . Fabnet Peak Effective % . | . . . Robots Rewired . | . . . Allies Hacked . | . . . Hacks Repelled . | . . . Allies | -11 -10 -10 -------- Run | Yrd Mat Min Total Allies . | . . . Largest Group . | . . . Highest-Rated Group . | . . . Highest-Rated Ally . | . . . Total Orders . | . . . Ally Attacks . | . . . Total Damage . | . . . Kills . | . . . Allies Corrupted . | . . . Allies Melted . | . . . Intel | -11 -10 -10 ------- Run | Yrd Mat Min Robot Analysis Total . | . . . Derelict Logs Recovered 2 | . . 2 Drone Launches . | . . . Drone Recoveries . | . . . Exploration | -11 -10 -10 ------------- Run | Yrd Mat Min Turns Passed 919 | 49 355 515 Spaces Moved 410 | 41 141 228 Core 6 | 6 . . Treads . | . . . Legs 322 | . 94 228 Wheels 82 | 35 47 . Hover . | . . . Flight . | . . . Fastest Speed 50 | 50 90 190 Average Speed 178 | 93 167 199 Slowest Speed 330 | 200 330 330 Overloaded Moves . | . . . Propulsion Burnouts . | . . . Robots Hopped . | . . . Cave-ins Triggered . | . . . Exploration Rate (%) 31 | 3 33 57 Regions Visited 2 Branch Regions 1 Pre-discovered Areas . | . . . Known Exits Taken . | . . . Unknown Exits Taken 2 | 1 1 . Scrap Searched . | . . . Spaces Dug . | . . . Terrain Destroyed 9 | . 9 . Melee . | . . . Projectile . | . . . AOE 9 | . 9 . Terrain Rammed . | . . . Walls Destroyed . | . . . Machines Disabled . | . . . Actions | -11 -10 -10 --------- Run | Yrd Mat Min Total 496 | 48 194 254 Wait 7 | . . 7 Move 408 | 40 140 228 Hop . | . . . Pick Up 13 | 2 10 1 Fast Attach 10 | 6 2 2 Attach . | . . . Detach . | . . . Swap 7 | . 7 . Drop 2 | . 2 . Fire 47 | . 32 15 Melee . | . . . Ram . | . . . Kick 2 | . 1 1 Crush . | . . . Escape Stasis . | . . . Rewire . | . . . Trap . | . . . Miscellaneous . | . . . Route ------- -11/Scrapyard -10/Materials -10/Mines (discovered 1 exit: [*Mat]) History --------- Turn | Location | Event 27 | -11/Scrapyard | Discovered new exit (range 15) 50 | -11/Scrapyard | Entered Materials 330 | -10/Materials | Build established: Mutant 382 | -10/Materials | Discovered new exit (range 8) 405 | -10/Materials | Entered Mines 562 | -10/Mines | Learned 8 Materials zone layouts 608 | -10/Mines | Assembled infested the area 713 | -10/Mines | Core integrity fell below 50% 758 | -10/Mines | Received a Rocket Launcher from a helpful Derelict 896 | -10/Mines | Discovered new exit (range 8) 918 | -10/Mines | Core integrity fell below 20% 920 | -10/Mines | Destroyed by S-10 Pest with Light Assault Rifle Last Messages --------------- 00758_ A2-YZE(g): "Would you like a rocket launcher? I know I would if I were you, so I'm going to lend you mine." 00758_ A2-YZE(g) slips back into the shadows. 00766_ Acquired derelict log, extracted data. Data stored: Recycling entrances (x1). 00772_ U-05 Engineer lays Concrete. 00783_ K-01 Serf collects debris. 00784_ R-06 Scavenger collects Lgt. Ion Engine. 00785_ K-01 Serf collects debris. 00788_ R-06 Scavenger collects Terrain Scan Processor. 00790_ K-01 Serf collects debris. 00896_ EXIT=FOUND 00897_ Hvy. EM Pulse Gun destroyed. 00901_ Aluminum Leg destroyed. 00903_ Lgt. Nuclear Core destroyed. 00907_ Kicked S-10 Pest out of the way. 00912_ Heat Sink destroyed. 00914_ as-70863 destroyed. Map ----- +----------------------------------------------------+ | | | | | | | | | | | | | | | ???????????????????????????????????????????? | | ???????????????????????????????????????????? | | ??????????????????????########?????????????? | | ?????################## ##????????????? | | ?????# #????????????? | | ?????# ################ #????????????? | | ?????# #??????????????### ##???????????? | | ?????# #????????????????## ##??????????? | | ?????# #?????????????????# ##?????????? | | ?????# #?????????????????# #?????????? | | ?????# #?????????????????## #?????????? | | ?????# #??????????????????### ##????????? | | ###??# #????????????????????# ##???????? | | #### ###?????????????????## #???????? | | =! % #??????# ?????????# #???????? | | !!% % %% #?###### ???????# ##???????? | | =%! ### !u%!==! t ?????## ###????#???? | | =%[#?? % =*|%*s s s #####%### #???? | | = #??##########